Cogmind - Beta 12 @@@ ROGUE MODE // 2024.01.14 @ 12:20:04 Player: Horse Result: Self-destructed Performance ------------- Evolutions (1) 500 Regions Visited (2) 400 Robots Destroyed (58) 290 Value Destroyed (1184) 1184 Prototype IDs (2) 40 Alien Tech Used (0) 0 Bonus (0) 0 TOTAL SCORE: 2414 Bonus ------- None Cogmind --------- Core Integrity 286/400 Matter 292/300 Energy 11/100 System Corruption 1% Temperature Cool (0) Movement Walking (120) Location -9/Materials Parts ------- > --- POWER (1) -------- (None) > --- PROPULSION (2) --- Aluminum Leg Improved Aluminum Leg > --- UTILITY (4) ------ Structural Scanner Transport Network Coupler Core Shielding Hardened Light Armor Plating > --- WEAPON (2) ------- Ion Cannon EMP Blaster > --- INVENTORY (5) ---- Disposable Heat Sink Advanced Weight Redist. System Machine Analyzer Utility Shielding Hacking Suite Peak State ------------ > --- POWER ------------ Light Nuclear Core > --- PROPULSION ------- Aluminum Leg Aluminum Leg > --- UTILITY ---------- Advanced Weight Redist. System Terrain Scan Processor Core Shielding Light Armor Plating > --- WEAPON ----------- Pulse Rifle Pulse Rifle > --- INVENTORY -------- Structural Scanner Utility Shielding Grenade Launcher Mining Laser [Rating: 18] Favorites ----------- Power Light Nuclear Core Engine Ion Engine Power Core Light Nuclear Core Propulsion Aluminum Leg Leg Aluminum Leg Utility Core Shielding Device Improved Terrain Scanner Storage Small Storage Unit Processor Terrain Scan Processor Protection Core Shielding Weapon EM Shotgun Energy Gun EM Shotgun Energy Cannon Beam Cannon Ballistic Gun Assault Rifle Ballistic Cannon Light Cannon Launcher EMP Blaster Special Weapon Mining Laser Build | -11 -10 -9 ------- Run | Jun Mat Mat Slots Evolved 2 | . . 2 Power . | . . . Propulsion . | . . . Utility 2 | . . 2 Weapon . | . . . Parts Attached 65 | 7 29 29 Power 7 | . 3 4 Engine 5 | . 1 4 Core 2 | . 2 . Reactor . | . . . Propulsion 10 | 2 5 3 Treads . | . . . Leg 10 | 2 5 3 Wheel . | . . . Hover . | . . . Flight . | . . . Utility 22 | 2 9 11 Device 12 | 1 6 5 Storage 1 | 1 . . Processor 2 | . 1 1 Hackware . | . . . Protection 7 | . 2 5 Artifact . | . . . Weapon 26 | 3 12 11 Energy Gun 12 | 2 4 6 Energy Cannon 2 | . 1 1 Ballistic Gun 4 | 1 2 1 Ballistic Cannon 1 | . 1 . Launcher 3 | . 1 2 Special Weapon 4 | . 3 1 Impact Weapon . | . . . Slashing Weapon . | . . . Piercing Weapon . | . . . Special Melee Weapon . | . . . Unidentified Prototypes . | . . . Parts Lost 10 | . . 10 Power 3 | . . 3 Propulsion 1 | . . 1 Utility 1 | . . 1 Weapon 5 | . . 5 Highest Loss Streak 6 | . . 6 To Critical Strikes . | . . . Average Slot Usage (%) 96 | . 97 94 Engine 7 | . 8 5 Core 3 | . 4 2 Leg 24 | . 27 22 Device 8 | . 8 7 Storage 1 | . 2 . Processor 11 | . 11 11 Protection 14 | . 5 23 Energy Gun 11 | . 5 17 Energy Cannon 2 | . 4 . Ballistic Gun 4 | . 9 . Ballistic Cannon 1 | . 2 . Launcher 1 | . . 2 Special Weapon 2 | . 5 . Naked Turns . | . . . Heaviest Build 17 | 9 15 17 Greatest Support 23 | 20 20 23 Greatest Overweight (x) . | . . . Average Overweight (x) . | . . . Largest Inventory Capacity 8 | 8 8 5 Average Capacity 5 | 7 5 5 Most Carried 5 | 2 5 5 Average Carried 4 | 1 4 4 Final Capacity 8 | 8 5 5 Final Carried 5 | 2 5 5 Class Distribution -------------------- 70% | Mutant 29% | Scavenger-Mutant Dominant Class ---------------- Scavenger-Mutant | -10/Materials Mutant | -9/Materials Resources | -11 -10 -9 ----------- Run | Jun Mat Mat Matter Collected 1129 | 232 456 441 Remotely . | . . . Salvage Created 1735 | 116 718 901 Parts 141 | 6 63 72 Haulers Intercepted 5 | . 1 4 Recyclers Shooed 1 | . . 1 Parts Field Recycled . | . . . Retrieved Matter . | . . . Parts Self-Destructed . | . . . Prevented . | . . . Kills | -11 -10 -9 ------- Run | Jun Mat Mat Combat Hostiles Destroyed 33 | . 16 17 Guns 27 | . 11 16 Cannons 5 | . 5 . AOE 1 | . . 1 Classes Destroyed 11 | 2 6 3 Worker 8 | . 3 5 Builder 1 | . 1 . Tunneler 1 | 1 . . Hauler 5 | . 1 4 Recycler 1 | 1 . . Operator 4 | . . 4 Watcher 5 | . 2 3 Swarmer 10 | . 3 7 Grunt 19 | . 13 6 Duelist 1 | . . 1 Sentry 3 | . . 3 Best Kill Streak 6 | 2 6 5 Combat Bots Only 5 | . 3 5 Max Kills in Single Turn 2 | 1 1 2 Gunslinging 1 | . . 1 Exploded 1 | . . 1 Melee . | . . . Uniques/NPCs Destroyed . | . . . Combat | -11 -10 -9 -------- Run | Jun Mat Mat Damage Taken 1730 | . 652 1078 Core 225 | . 111 114 Absorbed by Shields . | . . . Redirected to Shielding 26 | . . 26 Regen/Repaired (Parts) 176 | . 134 42 Core Remaining (%) 77 | 100 55 . Volleys Fired 163 | 3 79 81 Largest 2 | 2 2 2 Hottest 126 | 60 125 126 Shots Fired 275 | 6 133 136 Gun 205 | 6 84 115 Cannon 47 | . 35 12 Launcher 9 | . 1 8 Special 14 | . 13 1 Kinetic 63 | 3 59 1 Thermal 125 | 3 56 66 Explosive 4 | . 1 3 Electromagnetic 83 | . 17 66 Robot Hit Streak 11 | 4 9 11 Robot Miss Streak 5 | . 5 5 Penetration Max . | . . . Secondary Targets 4 | . 1 3 Max Gunslinging Chain 1 | . 1 1 Shots Hit Robots 163 | 4 68 91 Core Hits 89 | 3 32 54 Critical Kills . | . . . Critical Parts Destroyed 1 | . 1 . Critical Strikes 3 | . 1 2 Burn 1 | . . 1 Destroy 1 | . 1 . Sever 1 | . . 1 Melee Attacks . | . . . Impact . | . . . Slashing . | . . . Piercing . | . . . Sneak Attacks . | . . . Combat Hostiles . | . . . Follow-up Attacks . | . . . Damage Inflicted 3044 | 49 1038 1957 Guns 2123 | 49 758 1316 Cannons 394 | . 280 114 Explosions 517 | . . 517 Melee . | . . . Ramming . | . . . Kinetic 560 | 38 522 . Thermal 1202 | 11 365 826 Explosive 334 | . . 334 Electromagnetic 948 | . 151 797 Impact . | . . . Slashing . | . . . Piercing . | . . . Highest Corruption 2 | . 2 1 Average Corruption 1 | . 1 1 Corruption Purged . | . . . Corruption Blocked . | . . . Effects 10 | . 10 . Message Errors 3 | . 3 . Matter Fused 3 | . 3 . Heat Flow Errors 2 | . 2 . Energy Discharges 1 | . 1 . Misfires 1 | . 1 . Overload Shots . | . . . Overflow Damage 16 | . . 16 Projectiles . | . . . Explosions 16 | . . 16 Melee . | . . . Knockbacks . | . . . Impact . | . . . Kinetic . | . . . Secondary . | . . . Self-Inflicted Damage 21 | . . 21 Shots 2 | . . 2 Rammed . | . . . Targets Rammed . | . . . Kicked . | . . . Crushed . | . . . Highest Temperature 432 | . 300 432 Average Temperature 101 | . 92 109 Received Heat Transfer 681 | . 324 357 Effects 6 | . 2 4 Shutdowns 1 | . . 1 Energy Bleed 2 | . 1 1 Interference 1 | . 1 . Matter Decay 1 | . . 1 Damage (minor) 1 | . . 1 Siege Activations . | . . . Robots Corrupted . | . . . Combat Hostiles . | . . . Parts Fried 6 | . . 6 Impact Corruptions . | . . . Robots Melted . | . . . Combat Hostiles . | . . . Parts Melted 3 | . 1 2 Heat Transferred 2605 | 25 802 1778 Parts Sabotaged . | . . . Parts Stolen . | . . . Parts Stripped . | . . . Power Chain Reactions 2 | . . 2 Missiles Intercepted . | . . . Alert | -11 -10 -9 ------- Run | Jun Mat Mat Peak Influence 399 | 10 184 399 Initial 77 | . 6 77 Average 132 | 4 112 158 Maximum Alert Level 1 | . . 1 Low Security (%) 83 | 100 100 67 Level 1 16 | . . 32 Level 2 . | . . . Level 3 . | . . . Level 4 . | . . . Level 5 . | . . . High Security . | . . . Max Security . | . . . Squads Dispatched 7 | . 3 4 Investigation 3 | . 3 . Extermination . | . . . Reinforcement 4 | . . 4 Assault . | . . . Garrison . | . . . Intercept . | . . . Searches Triggered . | . . . Construction Impeded 1 | . . 1 Haulers Reinforced . | . . . Active Scanning Responses . | . . . Cargo Convoy Interrupts . | . . . Stealth | -11 -10 -9 --------- Run | Jun Mat Mat Distress Signals 7 | . 2 5 Communications Jammed . | . . . Distress Signals . | . . . Times Spotted 54 | . 20 34 Peak Tracking Total 7 | . 5 7 Tactical Retreats 3 | . . 3 Traps | -11 -10 -9 ------- Run | Jun Mat Mat Traps Triggered 3 | . 2 1 Indirectly . | . . . Trap Hack Attempts . | . . . Triggered . | . . . Disarmed . | . . . Reprogrammed . | . . . Reused . | . . . Traps Extracted . | . . . Installed . | . . . Triggered . | . . . Machines | -11 -10 -9 ---------- Run | Jun Mat Mat Machines Disabled 5 | . 1 4 Max in Single Turn 2 | . 1 2 Machines Repaired . | . . . Machines Sabotaged . | . . . Overloaded Fab Kills . | . . . Hacking | -11 -10 -9 --------- Run | Jun Mat Mat Machines Accessed 17 | . 11 6 Terminals 12 | . 8 4 Fabricators . | . . . Repair Stations 2 | . 1 1 Recycling Units 2 | . 2 . Scanalyzers 1 | . . 1 Garrison Access . | . . . Total Hacks 75 | . 40 35 Successful 43 | . 18 25 Failed 32 | . 22 10 Catastrophic 3 | . 1 2 Database Lockouts . | . . . Manual 37 | . 18 19 Terminals 49 | . 28 21 Fabricators . | . . . Repair Stations 12 | . 9 3 Recycling Units 3 | . 3 . Scanalyzers 11 | . . 11 Garrison Access . | . . . Terminal Hacks 14 | . 8 6 Robot Schematic 1 | . 1 . Robot Analysis 3 | . 2 1 Prototype ID Bank 1 | . 1 . Branch Access Points 1 | . 1 . Emergency Access Points 1 | . 1 . Terminal Index 1 | . . 1 Unreport Threat 1 | . . 1 Locate Traps 3 | . 2 1 Registered Components 1 | . . 1 Zone Layout 1 | . . 1 Fabricator Hacks . | . . . Repair Station Hacks 8 | . 6 2 Scan Component 4 | . 3 1 Repair 4 | . 3 1 Recycling Unit Hacks 1 | . 1 . Retrieve Components 1 | . 1 . Scanalyzer 11 | . . 11 Insert Component 5 | . . 5 Analyze 6 | . . 6 Garrison Access Hacks . | . . . Unauthorized Hacks 9 | . 3 6 Terminals 9 | . 3 6 Track 1 | . . 1 Botnet 7 | . 3 4 Operators 1 | . . 1 Fabricators . | . . . Repair Stations . | . . . Recycling Units . | . . . Scanalyzers . | . . . Garrison Access . | . . . Data Cores Recovered 1 | . . 1 Used . | . . . Hacking Detections 14 | . 10 4 Full Trace Events 5 | . 4 1 Feedback Events 1 | . 1 . Corruption 1 | . 1 . Feedback Blocked . | . . . Robot Schematics Acquired 1 | . 1 . Robots Built . | . . . Authchips . | . . . Time . | . . . Total Robot Build Rating . | . . . Part Schematics Acquired 5 | . . 5 Parts Built . | . . . Authchips . | . . . Time . | . . . Total Part Build Rating . | . . . Parts Repaired 4 | . 3 1 Time 110 | . 78 32 Parts Recycled . | . . . Recycled Matter . | . . . Retrieved Matter . | . . . Retrieved Components 9 | . 9 . Parts Scanalyzed 5 | . . 5 Part Schematics Acquired 5 | . . 5 Parts Damaged . | . . . Bothacking | -11 -10 -9 ------------ Run | Jun Mat Mat Used RIF Installer . | . . . Robots Hacked . | . . . Non-combat . | . . . Combat . | . . . Robot Hacks Applied . | . . . Relay Couplers Released . | . . . Fabnet Peak Effective % . | . . . Robots Rewired . | . . . Allies Hacked . | . . . Hacks Repelled . | . . . Allies | -11 -10 -9 -------- Run | Jun Mat Mat Total Allies . | . . . Largest Group . | . . . Highest-Rated Group . | . . . Highest-Rated Ally . | . . . Total Orders . | . . . Ally Attacks . | . . . Total Damage . | . . . Kills . | . . . Allies Corrupted . | . . . Allies Melted . | . . . Intel | -11 -10 -9 ------- Run | Jun Mat Mat Robot Analysis Total 3 | . 2 1 Derelict Logs Recovered . | . . . Drone Launches . | . . . Drone Recoveries . | . . . Exploration | -11 -10 -9 ------------- Run | Jun Mat Mat Turns Passed 2545 | 78 1171 1296 Spaces Moved 1418 | 51 643 724 Core 6 | 6 . . Treads . | . . . Legs 1412 | 45 643 724 Wheels . | . . . Hover . | . . . Flight . | . . . Fastest Speed 50 | 50 120 120 Average Speed 119 | 111 120 120 Slowest Speed 120 | 120 120 120 Overloaded Moves . | . . . Propulsion Burnouts . | . . . Robots Hopped . | . . . Cave-ins Triggered . | . . . Exploration Rate (%) 53 | 5 96 60 Regions Visited 2 Branch Regions . Pre-discovered Areas . | . . . Known Exits Taken . | . . . Unknown Exits Taken 2 | 1 1 . Scrap Searched . | . . . Spaces Dug 18 | . 17 1 Terrain Destroyed 53 | . 19 34 Melee . | . . . Projectile 14 | . 12 2 AOE 39 | . 7 32 Terrain Rammed . | . . . Walls Destroyed . | . . . Machines Disabled . | . . . Actions | -11 -10 -9 --------- Run | Jun Mat Mat Total 1952 | 62 881 1009 Wait 267 | . 107 160 Move 1416 | 50 642 724 Hop . | . . . Pick Up 16 | 2 9 5 Fast Attach 25 | 6 7 12 Attach 4 | . 1 3 Detach 2 | . 1 1 Swap 36 | 1 21 14 Drop 23 | . 14 9 Fire 163 | 3 79 81 Melee . | . . . Ram . | . . . Kick . | . . . Crush . | . . . Escape Stasis . | . . . Rewire . | . . . Trap . | . . . Miscellaneous . | . . . Route ------- -11/Junkyard -10/Materials (discovered 4 exits: *Mat x3 / *Min) -9/Materials (discovered 2 exits: [Mat] / [*Min]) History --------- Turn | Location | Event 6 | -11/Junkyard | Discovered new exit (range 15) 79 | -11/Junkyard | Entered Materials 425 | -10/Materials | Repaired Assault Rifle 452 | -10/Materials | Repaired Aluminum Leg 480 | -10/Materials | Repaired Aluminum Leg 487 | -10/Materials | Discovered new exit (range 16) 581 | -10/Materials | Build established: Scavenger-Mutant 722 | -10/Materials | Discovered new exit (range 7) 752 | -10/Materials | Identified exit to Mines 948 | -10/Materials | Discovered new exit (range 15) 1093 | -10/Materials | Discovered new exit (range 14) 1250 | -10/Materials | Entered another Materials area 1250 | -9/Materials | Evolved 2 slots: Utility x2 1565 | -9/Materials | Build established: Mutant 1636 | -9/Materials | Lost 6 parts (1p1n1u3w) 1716 | -9/Materials | Repaired EM Shotgun 2009 | -9/Materials | Discovered new exit (range 5) 2064 | -9/Materials | Discovered new exit (range 6) 2357 | -9/Materials | Lost 4 parts (2p2w) 2546 | -9/Materials | Self-destructed Last Messages --------------- 02335_ Acquired 4 matter. 02355_ R-06 Scavenger collects Corrupted Flight Unit. 02436_ Acquired Shotgun. 02446_ K-01 Serf cleans the Hadron Collector. 02454_ Acquired Machine Analyzer. 02457_ Dropped Shotgun. 02457_ Acquired Ion Cannon. 02471_ R-06 Scavenger inserts Corrupted Wheel into recycling unit. 02472_ Recycling unit begins recycling process. 02474_ R-06 Scavenger inserts Corrupted Aluminum Leg into recycling unit. 02477_ R-06 Scavenger inserts Sml. Laser into recycling unit. 02478_ Recycling unit begins recycling process. 02491_ K-01 Serf destroyed. 02493_ Acquired 15 matter. 02494_ Extracted 19 matter. 02519_ R-06 Scavenger collects Sml. Matter Pod. 02527_ U-05 Engineer builds a Wall. 02533_ Door malfunctions. 02537_ K-01 Serf collects debris. 02544_ ALERT: Construction progress impeded, dispatching reinforcements to local area. Map ----- +----------------------------------------------------+ | ??????# #???????????############????? | | ??????#####+#####???????????## ##????? | | ??????????# #???????????????## """ ### | | ??????????# #???????????????## = """ ####### | | ??????????# #???????????????## """ # | | ??????????# #???????????????## # | | ??????????# #???????########## ! "" "" | | ??????????# ################# S"" | | ########### [ =% "" | | # # %! # | | # # =% =# ####+## | | # # ! | | # """ """ + | | # """ """ # % % | | # """ """ ### #######+######/##### #######+## | | # #?# ##### # ## ##### | | # ### #####""" # """ ## ?????????? | | ?########## ###""" # """ ## ?????????? | | ??????????# ###""" + """ ## ?????????? | | ??????????# % +% # """ ## ?????????? | | ??????????# ### % # ## ?????????? | | ??????????# #?#########+###### ?????????? | | ??????????# ##???????## ##??## ?????????? | | ??????????# ########## ##?????? ????? | | ??????????#! !########## ##??## ???? | | ??????????##!!!!## @ k ###### ???? | | ???????????####### #### ####"" ??? | | ????????????????## ul#### ""Y ??? | | ????????????????## u ####![]]!!#"" "T" ????? | | ????????????????## ####!! ]!!##? ""??????? | | ????????????????## ############??? ?????? | | ????????????????## ############????? ????? | | ????????????????##g # ?????????????????????? | | ????????????????## # ?????????????????????? | | ???????????????? g # ?????????????????????? | | ??????????????? # ?????????????????????? | | ????a????????? /??????????????????????? | | ???????????? """ #??????????????????????? | | ??????????? """ #??????????????????????? | | ??????????# """ #??????????????????????? | | ??????????# #??????????????????????? | | ??????????# ??? #??????????????????????? | | ??????????# ????" #??????????????????????? | | ??????????# ?????" #??????????????????????? | | ??????????#???????" #??????????????????????? | | ??????????????????? ???????????????????????? | | ??????????????????? ???????????????????????? | | ??????????????????? ???????????????????????? | | ????????????????????????????????????????????? | | ????????????????????????????????????????????? | +----------------------------------------------------+ Best States ------------- Heat Dissipation 28 Coolant Potential 50 Energy Generation 14 Energy Capacity 250 Matter Stores 300 Matter Capacity 300 Sight Range 16 Terrain Scan Range 16 Terrain Scan Density 85 Armor Coverage 150 Core Shielding 20 Utility Shielding 33 Evasion (%) 55 Item Schematics ----------------- Hacking Suite | -9/Materials | Scanalyzed Core Shielding | -9/Materials | Scanalyzed Hrd. Light Armor Plating | -9/Materials | Scanalyzed Disposable Heat Sink | -9/Materials | Scanalyzed Utility Shielding | -9/Materials | Scanalyzed Robot Schematics ------------------ M-13 Machinist | -10/Materials | Hacked Fabricated ------------ Nothing Alien Tech Used ----------------- None Achievements -------------- None Challenges ------------ None Game ------ Seed MicroDisposableKatana Manual? 0 Play Time 00:32:39 Cumulative 1109.9 hours Start 2024.01.12 @ 20:01:22 End 2024.01.14 @ 12:20:04 Sessions 5 Manual Loads 0 Difficulty Rogue Special Mode None Game No. 465 Rogue 465 Adventurer 0 Explorer 0 Win Type - Total 14 Types 12/0/1/1/0/0/0/0/0 Lore% 73 Gallery% 85 Achievement% 71 Wizard Run 0 Options --------- ASCII 0 Keyboard 1 Movement Numpad Keybinds 0 Fullscreen 1 Font 18/SmallcapsGlow Map View 112x50 Tactical HUD 1 Map Filters NONE Filters NONE Steam 1 RUN: 555c9525-3bb7-416e-9bf3-bd567efb7506